fUSD/lending_fUSD_20250127
["ID","MTS","AMOUNT","RATE_DAILY","PERIOD"]
[350602278,1737989434888,-514.77551842,0.00010958,2]
[350602279,1737989434901,-621.49734062,0.00010958,2]
[350602282,1737989434911,-500.0,0.00010958,2]
[350602283,1737989434921,-503.27453062,0.00010958,2]
[350602286,1737989434931,-500.0,0.00010958,2]
[350602287,1737989434941,-500.0,0.00010958,2]
[350602290,1737989434950,-500.0,0.00010958,2]
[350602291,1737989434960,-500.0,0.00010958,2]
[350602293,1737989434969,-500.0,0.00010958,2]
[350602296,1737989434980,-264.09423896,0.00010958,2]
[350602297,1737989434989,-500.0,0.00010958,2]
[350602299,1737989435000,-500.0,0.00010958,2]
[350602301,1737989435010,-500.0,0.00010958,2]
[350602303,1737989435021,-500.0,0.00010958,2]
[350602305,1737989435031,-500.0,0.00010958,2]
[350602307,1737989435041,-500.0,0.00010958,2]
[350602309,1737989435050,-500.0,0.00010958,2]
[350602311,1737989435062,-500.0,0.00010958,2]
[350602314,1737989435072,-500.0,0.00010958,2]
[350602315,1737989435081,-500.0,0.00010958,2]
[350602317,1737989435091,-332.7020832,0.00010958,2]
[350602319,1737989435101,-500.0,0.00010958,2]
[350602322,1737989435111,-500.0,0.00010958,2]
[350602324,1737989435122,-500.0,0.00010958,2]
[350602325,1737989435132,-500.0,0.00010958,2]
[350602327,1737989435142,-500.0,0.00010958,2]
[350602329,1737989435152,-500.0,0.00010958,2]
[350602332,1737989435161,-500.0,0.00010958,2]
[350602334,1737989435171,-500.0,0.00010958,2]
[350602335,1737989435180,-500.0,0.00010958,2]
[350602337,1737989435190,-500.0,0.00010958,2]
[350602339,1737989435199,-500.0,0.00010958,2]
[350602342,1737989435209,-230.6903706,0.00010958,2]
[350602344,1737989435218,-500.0,0.00010958,2]
[350602345,1737989435228,-500.0,0.00010958,2]
[350602347,1737989435237,-500.0,0.00010958,2]
[350602350,1737989435248,-589.65,0.00010958,2]
[350602352,1737989435257,-589.65,0.00010958,2]
[350602354,1737989435268,-589.65,0.00010958,2]
[350602356,1737989435277,-500.0,0.00010958,2]
[350602358,1737989435286,-266.57062648,0.00010958,2]
[350602360,1737989435295,-500.0,0.00010958,2]
[350602361,1737989435306,-500.0,0.00010958,2]
[350602363,1737989435315,-500.0,0.00010958,2]
[350602365,1737989435324,-500.0,0.00010958,2]
[350602367,1737989435334,-461.98898763,0.00010958,2]
[350602369,1737989435342,-500.0,0.00010958,2]
[350602371,1737989435352,-500.0,0.00010958,2]
[350602373,1737989435361,-500.0,0.00010958,2]
[350602375,1737989435370,-787.71,0.00010958,2]
[350602377,1737989435379,-787.71,0.00010958,2]
[350602379,1737989435389,-787.71,0.00010958,2]
[350602381,1737989435398,-1708.12,0.00010958,2]
[350602383,1737989435407,-1708.12,0.00010958,2]
[350602385,1737989435418,-500.0,0.00010958,2]
[350602387,1737989435428,-500.0,0.00010958,2]
[350602389,1737989435439,-500.0,0.00010958,2]
[350602391,1737989435448,-500.0,0.00010958,2]
[350602393,1737989435458,-500.0,0.00010958,2]
[350602395,1737989435467,-500.0,0.00010958,2]
[350602397,1737989435477,-500.0,0.00010958,2]
[350602399,1737989435486,-526.61,0.00010958,2]
[350602401,1737989435495,-526.61,0.00010958,2]
[350602403,1737989435505,-526.61,0.00010958,2]
[350602405,1737989435515,-500.0,0.00010958,2]
[350602407,1737989435524,-500.0,0.00010958,2]
[350602409,1737989435533,-500.0,0.00010958,2]
[350602411,1737989435542,-500.0,0.00010958,2]
[350602413,1737989435552,-500.0,0.00010958,2]
[350602415,1737989435562,-500.0,0.00010958,2]
[350602417,1737989435572,-500.0,0.00010958,2]
[350602419,1737989435582,-1004.39,0.00010958,2]
[350602421,1737989435592,-500.0,0.00010958,2]
[350602423,1737989435602,-1004.39,0.00010958,2]
[350602426,1737989435611,-500.0,0.00010958,2]
[350602428,1737989435620,-1004.39,0.00010958,2]
[350602429,1737989435629,-830.77,0.00010958,2]
[350602431,1737989435638,-830.77,0.00010958,2]
[350602433,1737989435648,-830.77,0.00010958,2]
[350602435,1737989435657,-500.0,0.00010958,2]
[350602437,1737989435667,-500.0,0.00010958,2]
[350602439,1737989435676,-500.0,0.00010958,2]
[350602441,1737989435685,-500.0,0.00010958,2]
[350602444,1737989435695,-500.0,0.00010958,2]
[350602446,1737989435704,-553.14121323,0.00010958,2]
[350602447,1737989435714,-500.0,0.00010958,2]
[350602449,1737989435723,-500.0,0.00010958,2]
[350602451,1737989435732,-500.0,0.00010958,2]
[350602453,1737989435741,-500.0,0.00010958,2]
[350602455,1737989435750,-622.65,0.00010958,2]
[350602457,1737989435759,-500.0,0.00010958,2]
[350602459,1737989435769,-622.65,0.00010958,2]
[350602461,1737989435778,-553.4982675,0.00010958,2]
[350602463,1737989435787,-622.65,0.00010958,2]
[350602465,1737989435796,-500.0,0.00010958,2]
[350602467,1737989435806,-500.0,0.00010958,2]
[350602469,1737989435815,-500.0,0.00010958,2]
[350602471,1737989435824,-500.0,0.00010958,2]
[350602473,1737989435833,-500.0,0.00010958,2]
[350602475,1737989435842,-500.0,0.00010958,2]
[350602477,1737989435851,-1253.14,0.00010958,2]
[350602479,1737989435861,-1253.14,0.00010958,2]
[350602481,1737989435870,-1253.14,0.00010958,2]
[350602483,1737989435880,-500.0,0.00010958,2]
[350602485,1737989435889,-500.0,0.00010958,2]
[350602487,1737989435898,-500.0,0.00010958,2]
[350602489,1737989435907,-521.8011103,0.00010958,2]
[350602491,1737989435917,-500.0,0.00010958,2]
[350602492,1737989435926,-500.0,0.00010958,2]
[350602493,1737989435935,-500.0,0.00010958,2]
[350602494,1737989435944,-500.0,0.00010958,2]
[350602495,1737989435953,-500.0,0.00010958,2]
[350602497,1737989435963,-500.0,0.00010958,2]
[350602499,1737989435972,-500.0,0.00010958,2]
[350602501,1737989435981,-546.13794336,0.00010958,2]
[350602503,1737989435991,-500.0,0.00010958,2]
[350602505,1737989436000,-500.0,0.00010958,2]
[350602506,1737989436009,-500.0,0.00010958,2]
[350602507,1737989436018,-500.0,0.00010958,2]
[350602508,1737989436027,-500.0,0.00010958,2]
[350602509,1737989436037,-500.0,0.00010958,2]
[350602510,1737989436045,-500.0,0.00010958,2]
[350602511,1737989436055,-500.0,0.00010958,2]
[350602512,1737989436064,-500.0,0.00010958,2]
[350602513,1737989436074,-500.0,0.00010958,2]
[350602514,1737989436083,-500.0,0.00010958,2]
[350602515,1737989436092,-500.0,0.00010958,2]
[350602516,1737989436101,-500.0,0.00010958,2]
[350602517,1737989436111,-500.0,0.00010958,2]
[350602518,1737989436120,-500.0,0.00010958,2]
[350602519,1737989436130,-500.0,0.00010958,2]
[350602520,1737989436140,-500.0,0.00010958,2]
[350602521,1737989436150,-500.0,0.00010958,2]
[350602522,1737989436159,-500.0,0.00010958,2]
[350602523,1737989436168,-500.0,0.00010958,2]
[350602524,1737989436178,-500.0,0.00010958,2]
[350602525,1737989436187,-500.0,0.00010958,2]
[350602526,1737989436197,-500.0,0.00010958,2]
[350602527,1737989436206,-500.0,0.00010958,2]
[350602528,1737989436216,-466.86,0.00010958,2]
[350602529,1737989436225,-500.0,0.00010958,2]
[350602530,1737989436234,-1112.89,0.00010958,2]
[350602531,1737989436244,-1112.89,0.00010958,2]
[350602532,1737989436253,-1112.89,0.00010958,2]
[350602533,1737989436263,-500.0,0.00010958,2]
[350602534,1737989436273,-500.0,0.00010958,2]
[350602535,1737989436282,-500.0,0.00010958,2]
[350602536,1737989436291,-500.0,0.00010958,2]
[350602537,1737989436300,-500.0,0.00010958,2]
[350602538,1737989436312,-500.0,0.00010958,2]
[350602539,1737989436322,-500.0,0.00010958,2]
[350602540,1737989436331,-500.0,0.00010958,2]
[350602541,1737989436341,-500.0,0.00010958,2]
[350602542,1737989436351,-508.10920998,0.00010958,2]
[350602543,1737989436360,-2478.37,0.00010958,2]
[350602544,1737989436369,-2478.37,0.00010958,2]
[350602545,1737989436379,-2478.37,0.00010958,2]
[350602546,1737989436388,-500.0,0.00010958,2]
[350602547,1737989436397,-500.0,0.00010958,2]
[350602548,1737989436407,-627.28,0.00010958,2]
[350602549,1737989436420,-500.0,0.00010958,2]
[350602550,1737989436429,-627.28,0.00010958,2]
[350602551,1737989436439,-627.28,0.00010958,2]
[350602552,1737989436448,-500.0,0.00010958,2]
[350602553,1737989436457,-500.0,0.00010958,2]
[350602554,1737989436467,-500.0,0.00010958,2]
[350602555,1737989436476,-500.0,0.00010958,2]
[350602556,1737989436486,-500.0,0.00010958,2]
[350602557,1737989436497,-152.22,0.00010958,2]
[350602558,1737989436507,-548.17,0.00010958,2]
[350602559,1737989436516,-548.17,0.00010958,2]
[350602560,1737989436526,-500.0,0.00010958,2]
[350602561,1737989436535,-548.17,0.00010958,2]
[350602562,1737989436545,-500.0,0.00010958,2]
[350602563,1737989436555,-500.0,0.00010958,2]
[350602564,1737989436565,-525.08880279,0.00010958,2]
[350602565,1737989436574,-522.99941932,0.00010958,2]
[350602566,1737989436582,-500.0,0.00010958,2]
[350602567,1737989436591,-500.0,0.00010958,2]
[350602568,1737989436600,-500.0,0.00010958,2]
[350602569,1737989436609,-500.0,0.00010958,2]
[350602570,1737989436618,-375.62,0.00010958,2]
[350602571,1737989436628,-500.0,0.00010958,2]
[350602572,1737989436637,-988.46,0.00010958,2]
[350602573,1737989436646,-988.46,0.00010958,2]
[350602574,1737989436655,-988.46,0.00010958,2]
[350602575,1737989436664,-654.34,0.00010958,2]
[350602576,1737989436673,-654.34,0.00010958,2]
[350602577,1737989436683,-654.34,0.00010958,2]
[350602578,1737989436692,-500.0,0.00010958,2]
[350602579,1737989436702,-504.00260762,0.00010958,2]
[350602580,1737989436711,-5959.94,0.00010958,2]
[350602581,1737989436720,-5959.94,0.00010958,2]
[350602582,1737989436729,-5959.94,0.00010958,2]
[350602583,1737989436739,-556.44381157,0.00010958,2]
[350602584,1737989436748,-885.79,0.00010958,2]
[350602585,1737989436757,-885.79,0.00010958,2]
[350602586,1737989436766,-885.79,0.00010958,2]
[350602587,1737989436776,-500.0,0.00010958,2]
[350602588,1737989436785,-500.0,0.00010958,2]
[350602589,1737989436794,-500.0,0.00010958,2]
[350602590,1737989436804,-500.0,0.00010958,2]
[350602591,1737989436814,-931.91,0.00010958,2]
[350602592,1737989436823,-931.91,0.00010958,2]
[350602593,1737989436833,-931.91,0.00010958,2]
[350602594,1737989436843,-532.58,0.00010958,2]
[350602595,1737989436852,-659.02,0.00010958,2]
[350602596,1737989436862,-659.02,0.00010958,2]
[350602597,1737989436871,-659.02,0.00010958,2]
[350602598,1737989436881,-500.0,0.00010958,2]
[350602599,1737989436890,-500.0,0.00010958,2]
[350602600,1737989436899,-500.0,0.00010958,2]
[350602601,1737989436910,-500.0,0.00010958,2]
[350602602,1737989436920,-500.0,0.00010958,2]
[350602603,1737989436929,-265.3879021,0.00010958,2]
[350602604,1737989436939,-500.0,0.00010958,2]
[350602605,1737989436948,-500.0,0.00010958,2]
[350602606,1737989436957,-500.0,0.00010958,2]
[350602607,1737989436966,-500.0,0.00010958,2]
[350602608,1737989436975,-500.0,0.00010958,2]
[350602609,1737989436985,-500.0,0.00010958,2]
[350602610,1737989436995,-158.65,0.00010958,2]
[350602611,1737989437004,-500.0,0.00010958,2]
[350602612,1737989437013,-500.0,0.00010958,2]
[350602613,1737989437022,-500.0,0.00010958,2]
[350602614,1737989437031,-500.0,0.00010958,2]
[350602615,1737989437040,-500.0,0.00010958,2]
[350602616,1737989437049,-500.0,0.00010958,2]
[350602617,1737989437060,-784.42,0.00010958,2]
[350602618,1737989437069,-500.0,0.00010958,2]
[350602619,1737989437080,-784.42,0.00010958,2]
[350602620,1737989437089,-784.42,0.00010958,2]
[350602621,1737989437099,-686.66,0.00010958,2]
[350602622,1737989437109,-500.0,0.00010958,2]
[350602623,1737989437118,-694.21,0.00010958,2]
[350602624,1737989437128,-500.0,0.00010958,2]
[350602625,1737989437137,-500.0,0.00010958,2]
[350602626,1737989437146,-694.21,0.00010958,2]
[350602627,1737989437156,-500.0,0.00010958,2]
[350602628,1737989437165,-694.21,0.00010958,2]
[350602629,1737989437174,-500.0,0.00010958,2]
[350602630,1737989437183,-500.0,0.00010958,2]
[350602631,1737989437193,-500.0,0.00010958,2]
[350602632,1737989437202,-500.0,0.00010958,2]
[350602633,1737989437212,-500.0,0.00010958,2]
[350602634,1737989437221,-500.0,0.00010958,2]
[350602635,1737989437231,-500.0,0.00010958,2]
[350602636,1737989437241,-504.60258474,0.00010958,2]
[350602637,1737989437250,-500.0,0.00010958,2]
[350602638,1737989437259,-643.87,0.00010958,2]
[350602639,1737989437268,-643.87,0.00010958,2]
[350602640,1737989437277,-643.87,0.00010958,2]
[350602641,1737989437287,-540.67,0.00010958,2]
[350602642,1737989437296,-540.67,0.00010958,2]
[350602643,1737989437305,-540.67,0.00010958,2]
[350602644,1737989437315,-500.0,0.00010958,2]
[350602645,1737989437324,-500.0,0.00010958,2]
[350602646,1737989437334,-500.0,0.00010958,2]
[350602647,1737989437343,-350.8106413,0.00010958,2]
[350602648,1737989437353,-500.0,0.00010958,2]
[350602649,1737989437362,-500.0,0.00010958,2]
[350602650,1737989437372,-500.0,0.00010958,2]
[350602651,1737989437382,-500.0,0.00010958,2]
[350602652,1737989437392,-1117.68,0.00010958,2]
[350602653,1737989437401,-1117.68,0.00010958,2]
[350602654,1737989437412,-1117.68,0.00010958,2]
[350602655,1737989437425,-862.54,0.00010958,2]
[350602656,1737989437435,-862.54,0.00010958,2]
[350602657,1737989437446,-862.54,0.00010958,2]
[350602658,1737989437456,-500.0,0.00010958,2]
[350602659,1737989437467,-500.0,0.00010958,2]
[350602660,1737989437477,-500.0,0.00010958,2]
[350602661,1737989437487,-410.83,0.00010958,2]
[350602662,1737989437497,-694.1,0.00010958,2]
[350602663,1737989437508,-1117.93,0.00010958,2]
[350602664,1737989437518,-500.0,0.00010958,2]
[350602665,1737989437528,-1117.93,0.00010958,2]
[350602666,1737989437537,-500.0,0.00010958,2]
[350602667,1737989437547,-1117.93,0.00010958,2]
[350602668,1737989437559,-500.0,0.00010958,2]
[350602669,1737989437569,-500.0,0.00010958,2]
[350602670,1737989437579,-500.0,0.00010958,2]
[350602671,1737989437588,-500.0,0.00010958,2]
[350602672,1737989437598,-574.37,0.00010958,2]
[350602673,1737989437608,-574.37,0.00010958,2]
[350602674,1737989437618,-574.37,0.00010958,2]
[350602675,1737989437627,-500.0,0.00010958,2]
[350602676,1737989437637,-500.0,0.00010958,2]
[350602677,1737989437647,-500.0,0.00010958,2]
[350602678,1737989437657,-866.8,0.00010958,2]
[350602679,1737989437667,-500.0,0.00010958,2]
[350602680,1737989437676,-500.0,0.00010958,2]
[350602681,1737989437686,-500.0,0.00010958,2]
[350602682,1737989437695,-1018.96,0.00010958,2]
[350602683,1737989437704,-500.0,0.00010958,2]
[350602684,1737989437714,-609.72045663,0.00010958,2]
[350602685,1737989437723,-500.0,0.00010958,2]
[350602686,1737989437733,-500.0,0.00010958,2]
[350602687,1737989437743,-500.0,0.00010958,2]
[350602688,1737989437752,-993.18,0.00010958,2]
[350602689,1737989437762,-500.0,0.00010958,2]
[350602690,1737989437771,-1764.71,0.00010958,2]
[350602691,1737989437781,-1764.71,0.00010958,2]
[350602692,1737989437790,-1764.71,0.00010958,2]
[350602693,1737989437800,-500.0,0.00010958,2]
[350602694,1737989437811,-500.0,0.00010958,2]
[350602695,1737989437821,-248.45,0.00010958,2]
[350602696,1737989437831,-9892.65477506,0.00010958,2]
[350602697,1737989437851,-2878.81922771,0.00010958,2]
[350602698,1737989437864,-19486.48597325,0.00010958,2]
[350602699,1737989437873,-1096.00926985,0.00011,2]
[350602700,1737989437883,-5020.17518732,0.00011,4]
[350602701,1737989437893,-773.64,0.00011041,2]
[350602702,1737989437903,-438.79,0.00011041,2]
[350602703,1737989437912,-773.64,0.00011041,2]
[350602704,1737989437922,-877.58,0.00011041,2]
[350602705,1737989437933,-153.577788,0.00011067,2]
[350602706,1737989437942,-269.3775698,0.00011099,2]
[350602707,1737989437952,-300.0,0.00011178,2]
[350602708,1737989437962,-594.69,0.00011178,2]
[350602709,1737989437972,-448.52,0.00011178,2]
[350602710,1737989437982,-982.28,0.00011178,2]
[350602711,1737989437992,-438.79,0.00011205,2]
[350602712,1737989438002,-500.0,0.0001126,2]
[350602713,1737989438012,-500.0,0.000113,2]
[350602714,1737989438021,-500.0,0.000113,2]
[350602715,1737989438032,-500.0,0.000113,2]
[350602716,1737989438041,-500.0,0.000113,2]
[350602717,1737989438051,-500.0,0.00011301,2]
[350602718,1737989438067,-500.0,0.00011301,2]
[350602719,1737989438077,-500.0,0.00011301,2]
[350602720,1737989438089,-1000.0,0.00011342,2]
[350602721,1737989438100,-500.0,0.00011389,2]
[350602722,1737989438112,-500.0,0.00011389,2]
[350602723,1737989438123,-500.0,0.00011389,2]
[350602724,1737989438135,-500.0,0.00011389,2]
[350602725,1737989438145,-500.0,0.00011389,2]
[350602726,1737989438156,-500.0,0.00011389,2]
[350602727,1737989438167,-500.0,0.00011389,2]
[350602728,1737989438178,-500.0,0.00011389,2]
[350602729,1737989438188,-589.65,0.00011389,2]
[350602730,1737989438199,-787.71,0.00011389,2]
[350602731,1737989438209,-500.0,0.00011389,2]
[350602732,1737989438219,-500.0,0.00011389,2]
[350602733,1737989438229,-526.61,0.00011389,2]
[350602734,1737989438239,-500.0,0.00011389,2]
[350602735,1737989438249,-500.0,0.00011389,2]
[350602736,1737989438259,-1004.39,0.00011389,2]
[350602737,1737989438269,-500.0,0.00011389,2]
[350602738,1737989438279,-500.0,0.00011389,2]
[350602739,1737989438289,-500.0,0.00011389,2]
[350602740,1737989438299,-500.0,0.00011389,2]
[350602741,1737989438311,-500.0,0.00011389,2]
[350602745,1737989438321,-500.0,0.00011389,2]
[350602747,1737989438331,-500.0,0.00011389,2]
[350602749,1737989438341,-500.0,0.00011389,2]
[350602750,1737989438351,-500.0,0.00011389,2]
[350602752,1737989438362,-1112.89,0.00011389,2]
[350602753,1737989438372,-500.0,0.00011389,2]
[350602754,1737989438383,-5959.94,0.00011389,2]
[350602755,1737989438392,-500.0,0.00011389,2]
[350602756,1737989438402,-931.91,0.00011389,2]
[350602757,1737989438413,-500.0,0.00011389,2]
[350602758,1737989438426,-500.0,0.00011389,2]
[350602759,1737989438437,-500.0,0.00011389,2]
[350602760,1737989438447,-500.0,0.00011389,2]
[350602761,1737989438594,-540.67,0.00011389,2]
[350602762,1737989438627,-862.54,0.00011389,2]
[350602763,1737989438637,-574.37,0.00011389,2]
[350602764,1737989438648,-502.93423376,0.00011389,2]
[350602765,1737989438657,-1764.71,0.00011389,2]
[350602766,1737989438666,-1037.008,0.00011389,2]
[350602767,1737989438676,-907.0,0.00011389,2]
[350602768,1737989438686,-782.0,0.00011389,2]
[350602769,1737989438696,-1262.0,0.00011389,2]
[350602770,1737989438713,-150.0,0.00011389,2]
[350602771,1737989438723,-3271.525,0.00011389,2]
[350602772,1737989438733,-1038.297,0.00011389,2]
[350602773,1737989438744,-179.3,0.00011463,2]
[350602774,1737989438754,-819.0,0.000115,2]
[350602775,1737989438763,-642.0,0.000115,2]
[350602776,1737989438773,-430.93306688,0.00011546,2]
[350602777,1737989438782,-1169.06529724,0.00011553,2]
[350602778,1737989438791,-150.0,0.00011606,2]
[350602779,1737989438801,-150.0,0.00011612,2]
[350602780,1737989438812,-150.0,0.00011613,2]
[350602781,1737989438821,-150.0,0.00011625,2]
[350602782,1737989438830,-150.0,0.00011627,2]
[350602783,1737989438840,-150.0,0.00011637,2]
[350602784,1737989438850,-150.0,0.00011637,2]
[350602785,1737989438859,-150.0,0.00011638,2]
[350602786,1737989438868,-150.0,0.00011638,2]
[350602787,1737989438878,-150.0,0.00011639,2]
[350602788,1737989438887,-150.0,0.0001164,2]
[350602789,1737989438897,-150.0,0.00011643,2]
[350602790,1737989438906,-153.577788,0.00011644,2]
[350602791,1737989438915,-150.0,0.00011645,2]
[350602792,1737989438925,-150.0,0.00011645,2]
[350602793,1737989438934,-150.0,0.00011646,2]
[350602794,1737989438944,-150.0,0.00011647,2]
[350602795,1737989438953,-150.0,0.00011648,2]
[350602796,1737989438962,-150.0,0.00011649,2]
[350602797,1737989438972,-150.0,0.00011657,2]
[350602798,1737989438981,-150.0,0.00011665,2]
[350602799,1737989438991,-150.0,0.00011666,2]
[350602800,1737989439000,-150.0,0.00011667,2]
[350602801,1737989439010,-150.0,0.00011667,2]
[350602802,1737989439019,-150.0,0.00011667,2]
[350602803,1737989439028,-1169.06529724,0.00011668,2]
[350602804,1737989439038,-150.0,0.00011673,2]
[350602805,1737989439047,-150.0,0.00011677,2]
[350602807,1737989439058,-150.0,0.00011678,2]
[350602809,1737989439068,-150.0,0.0001168,2]
[350602811,1737989439077,-150.0,0.00011682,2]
[350602813,1737989439086,-150.0,0.00011683,2]
[350602815,1737989439095,-150.0,0.00011687,2]
[350602816,1737989439105,-150.0,0.00011687,2]
[350602817,1737989439114,-150.0,0.00011689,2]
[350602819,1737989439124,-150.0,0.00011692,2]
[350602821,1737989439133,-150.0,0.00011696,2]
[350602822,1737989439143,-150.0,0.00011697,2]
[350602823,1737989439153,-150.0,0.00011698,2]
[350602824,1737989439163,-150.0,0.00011698,2]
[350602825,1737989439172,-1000.0,0.000117,2]
[350602826,1737989439182,-150.0,0.00011701,2]
[350602827,1737989439191,-150.0,0.00011702,2]
[350602828,1737989439201,-150.0,0.00011702,2]
[350602829,1737989439211,-150.0,0.00011702,2]
[350602831,1737989439220,-150.0,0.00011706,2]
[350602833,1737989439230,-150.0,0.00011707,2]
[350602835,1737989439240,-500.0,0.00011708,2]
[350602837,1737989439249,-500.0,0.00011708,2]
[350602839,1737989439259,-500.0,0.00011708,2]
[350602841,1737989439268,-532.58,0.00011708,2]
[350602843,1737989439278,-500.0,0.00011708,2]
[350602845,1737989439287,-686.66,0.00011708,2]
[350602847,1737989439295,-500.0,0.00011708,2]
[350602849,1737989439304,-500.0,0.00011708,2]
[350602850,1737989439314,-500.0,0.00011708,2]
[350602851,1737989439323,-223.8,0.00011708,2]
[350602852,1737989439332,-500.0,0.00011708,2]
[350602854,1737989439341,-694.1,0.00011708,2]
[350602856,1737989439350,-500.0,0.00011708,2]
[350602858,1737989439359,-500.0,0.00011708,2]
[350602859,1737989439368,-866.8,0.00011708,2]
[350602861,1737989439377,-1018.96,0.00011708,2]
[350602863,1737989439386,-993.18,0.00011708,2]
[350602865,1737989439396,-150.0,0.00011709,2]
[350602868,1737989439405,-527.0,0.0001171,2]
[350602869,1737989439415,-150.0,0.0001171,2]
[350602870,1737989439425,-150.0,0.00011711,2]
[350602871,1737989439435,-150.0,0.00011712,2]
[350602872,1737989439445,-150.0,0.00011712,2]
[350602873,1737989439454,-150.0,0.00011717,2]
[350602874,1737989439465,-150.0,0.0001173,2]
[350602875,1737989439474,-150.0,0.0001173,2]
[350602876,1737989439483,-150.0,0.00011731,2]
[350602877,1737989439492,-150.0,0.00011737,2]
[350602878,1737989439502,-150.0,0.00011737,2]
[350602879,1737989439512,-150.0,0.00011743,2]
[350602880,1737989439522,-150.0,0.00011745,2]
[350602881,1737989439531,-150.0,0.00011749,2]
[350602882,1737989439541,-150.0,0.0001175,2]
[350602883,1737989439550,-150.0,0.00011751,2]
[350602884,1737989439561,-150.0,0.00011754,2]
[350602885,1737989439570,-150.0,0.00011755,2]
[350602886,1737989439580,-153.577788,0.00011759,2]
[350602887,1737989439590,-157.250221,0.00011759,2]
[350602888,1737989439600,-150.0,0.00011759,2]
[350602889,1737989439609,-150.0,0.0001177,2]
[350602890,1737989439619,-150.0,0.00011773,2]
[350602891,1737989439628,-150.0,0.00011773,2]
[350602892,1737989439637,-150.0,0.00011775,2]
[350602893,1737989439647,-150.0,0.00011779,2]
[350602894,1737989439656,-150.0,0.00011782,2]
[350602895,1737989439665,-544.0,0.00011784,2]
[350602896,1737989439675,-150.0,0.00011784,2]
[350602897,1737989439684,-1169.06529724,0.00011784,2]
[350602898,1737989439694,-150.0,0.00011791,2]
[350602899,1737989439703,-150.0,0.00011792,2]
[350602900,1737989439712,-150.0,0.00011795,2]
[350602901,1737989439722,-150.0,0.00011798,2]
[350602902,1737989439732,-150.0,0.000118,2]
[350602903,1737989439741,-11829.65486545,0.000118,2]
[350602904,1737989439751,-150.0,0.00011806,2]
[350602905,1737989439760,-150.0,0.00011809,2]
[350602906,1737989439770,-150.0,0.00011812,2]
[350602907,1737989439779,-150.0,0.00011813,2]
[350602908,1737989439789,-150.0,0.00011813,2]
[350602909,1737989439798,-150.0,0.00011818,2]
[350602910,1737989439809,-150.0,0.00011819,2]
[350602911,1737989439818,-150.0,0.00011821,2]
[350602912,1737989439828,-150.0,0.00011822,2]
[350602913,1737989439837,-150.0,0.00011824,2]
[350602914,1737989439847,-150.0,0.00011833,2]
[350602915,1737989439857,-150.0,0.00011838,2]
[350602916,1737989439867,-150.0,0.00011841,2]
[350602917,1737989439876,-150.0,0.00011847,2]
[350602918,1737989439886,-150.0,0.00011851,2]
[350602919,1737989439895,-150.0,0.00011851,2]